fUSD/lending_fUSD_20240814
["ID","MTS","AMOUNT","RATE_DAILY","PERIOD"]
[334844102,1723607504486,-500.0,0.00015342,2]
[334844103,1723607504496,-3153.8,0.00015342,2]
[334844104,1723607504507,-1497.14,0.00015342,2]
[334844105,1723607504518,-3648.88,0.00015342,2]
[334844106,1723607504528,-4369.58,0.00015342,2]
[334844107,1723607504538,-500.0,0.00015342,2]
[334844108,1723607504548,-10558.66,0.00015342,2]
[334844109,1723607504558,-3669.67790033,0.00015342,2]
[334844110,1723607504570,-322.01209967,0.00015342,2]
[334844111,1723607504580,-617.95,0.00015342,2]
[334844112,1723607504590,-543.63,0.00015342,2]
[334844113,1723607504601,-2141.4,0.00015342,2]
[334844114,1723607504610,-2617.38,0.00015342,2]
[334844115,1723607504619,-4898.32,0.00015342,2]
[334844116,1723607504630,-1048.11,0.00015342,2]
[334844117,1723607504643,-2200.01,0.00015342,2]
[334844118,1723607504653,-500.0,0.00015342,2]
[334844119,1723607504665,-680.5,0.00015342,2]
[334844120,1723607504675,-525.19,0.00015342,2]
[334844121,1723607504684,-3069.08,0.00015342,2]
[334844122,1723607504694,-4095.44,0.00015342,2]
[334844123,1723607504703,-1101.33,0.00015342,2]
[334844124,1723607504713,-3093.95,0.00015342,2]
[334844125,1723607504723,-1974.21,0.00015342,2]
[334844126,1723607504733,-1153.12,0.00015342,2]
[334844127,1723607504743,-500.0,0.00015342,2]
[334844128,1723607504753,-1698.84,0.00015342,2]
[334844129,1723607504763,-1954.47,0.00015342,2]
[334844130,1723607504772,-500.0,0.00015342,2]
[334844131,1723607504803,-500.0,0.00015342,2]
[334844132,1723607504814,-500.0,0.00015342,2]
[334844133,1723607504824,-1008.04,0.00015342,2]
[334844134,1723607504834,-1831.82,0.00015342,2]
[334844135,1723607504845,-500.0,0.00015342,2]
[334844136,1723607504855,-2865.91,0.00015342,2]
[334844137,1723607504865,-15566.61,0.00015342,2]
[334844138,1723607504875,-5487.49,0.00015342,2]
[334844139,1723607504884,-500.0,0.00015342,2]
[334844140,1723607504894,-1963.56,0.00015342,2]
[334844141,1723607504904,-507.70157568,0.00015342,2]
[334844142,1723607504914,-686.68,0.00015342,2]
[334844143,1723607504924,-597.8,0.00015342,2]
[334844144,1723607504933,-500.0,0.00015342,2]
[334844145,1723607504943,-500.0,0.00015342,2]
[334844146,1723607504953,-1884.73,0.00015342,2]
[334844147,1723607504962,-500.0,0.00015342,2]
[334844148,1723607504971,-624.51776466,0.00015369,2]
[334844149,1723607504981,-212.09,0.00015375,2]
[334844150,1723607504990,-726.4,0.00015521,2]
[334844151,1723607505000,-212.78,0.00015608,2]
[334844152,1723607505010,-1000.0,0.00015615,2]
[334844153,1723607505020,-731.31,0.00015616,2]
[334844154,1723607505030,-500.0,0.00015616,2]
[334844155,1723607505041,-688.3,0.00015616,2]
[334844156,1723607505050,-508.14,0.00015616,2]
[334844157,1723607505059,-563.09,0.00015616,2]
[334844158,1723607505068,-500.0,0.00015616,2]
[334844159,1723607505078,-712.92,0.00015616,2]
[334844160,1723607505087,-500.0,0.00015616,2]
[334844161,1723607505096,-500.0,0.00015616,2]
[334844162,1723607505106,-902.09,0.00015616,2]
[334844163,1723607505117,-500.0,0.00015616,2]
[334844164,1723607505128,-500.0,0.00015616,2]
[334844165,1723607505139,-701.14,0.00015616,2]
[334844166,1723607505148,-506.71,0.00015616,2]
[334844167,1723607505158,-1472.55,0.00015616,2]
[334844168,1723607505168,-935.07,0.00015616,2]
[334844169,1723607505179,-500.0,0.00015616,2]
[334844170,1723607505188,-751.76,0.00015616,2]
[334844171,1723607505197,-1022.73,0.00015616,2]
[334844172,1723607505207,-1673.07,0.00015616,2]
[334844173,1723607505217,-891.04,0.00015616,2]
[334844174,1723607505226,-622.07,0.00015616,2]
[334844175,1723607505236,-781.14,0.00015616,2]
[334844176,1723607505246,-500.0,0.00015616,2]
[334844177,1723607505255,-500.0,0.00015616,2]
[334844178,1723607505264,-500.0,0.00015616,2]
[334844179,1723607505274,-500.0,0.00015616,2]
[334844180,1723607505283,-500.0,0.00015616,2]
[334844181,1723607505292,-500.0,0.00015616,2]
[334844182,1723607505302,-500.0,0.00015616,2]
[334844183,1723607505312,-547.55,0.00015616,2]
[334844184,1723607505322,-812.22,0.00015616,2]
[334844185,1723607505332,-500.0,0.00015616,2]
[334844186,1723607505341,-637.41,0.00015616,2]
[334844187,1723607505351,-1070.95,0.00015616,2]
[334844188,1723607505360,-1063.75,0.00015616,2]
[334844189,1723607505370,-727.22,0.00015616,2]
[334844190,1723607505380,-500.0,0.00015616,2]
[334844191,1723607505391,-500.0,0.00015616,2]
[334844192,1723607505401,-1698.66,0.00015616,2]
[334844193,1723607505412,-1060.55,0.00015616,2]
[334844194,1723607505423,-500.0,0.00015616,2]
[334844195,1723607505433,-500.0,0.00015616,2]
[334844196,1723607505444,-500.0,0.00015616,2]
[334844197,1723607505454,-799.52,0.00015616,2]
[334844198,1723607505464,-500.0,0.00015616,2]
[334844199,1723607505474,-500.0,0.00015616,2]
[334844200,1723607505566,-500.0,0.00015616,2]
[334844201,1723607505576,-1647.39,0.00015616,2]
[334844202,1723607505585,-612.24,0.00015616,2]
[334844203,1723607505594,-524.93057924,0.00015616,2]
[334844204,1723607505604,-500.0,0.00015616,2]
[334844205,1723607505613,-500.0,0.00015616,2]
[334844206,1723607505623,-611.16,0.00015616,2]
[334844207,1723607505632,-500.0,0.00015616,2]
[334844208,1723607505641,-500.0,0.00015616,2]
[334844209,1723607505651,-1328.0,0.00015616,2]
[334844210,1723607505661,-1488.34,0.00015616,2]
[334844211,1723607505671,-609.98,0.00015616,2]
[334844212,1723607505680,-734.92,0.00015616,2]
[334844213,1723607505690,-518.07,0.00015616,2]
[334844214,1723607505699,-500.0,0.00015616,2]
[334844215,1723607505709,-1665.35,0.00015616,2]
[334844216,1723607505718,-500.0,0.00015616,2]
[334844217,1723607505727,-500.0,0.00015616,2]
[334844218,1723607505737,-1119.92,0.00015616,2]
[334844219,1723607505746,-507.19,0.00015616,2]
[334844220,1723607505755,-1027.86,0.00015616,2]
[334844221,1723607505764,-500.0,0.00015616,2]
[334844222,1723607505773,-500.0,0.00015616,2]
[334844223,1723607505782,-500.0,0.00015616,2]
[334844224,1723607505792,-500.0,0.00015616,2]
[334844225,1723607505801,-1665.72,0.00015616,2]
[334844226,1723607505810,-583.56,0.00015616,2]
[334844227,1723607505819,-500.0,0.00015616,2]
[334844228,1723607505828,-543.84,0.00015616,2]
[334844229,1723607505837,-500.0,0.00015616,2]
[334844230,1723607505847,-703.07,0.00015616,2]
[334844231,1723607505857,-667.07,0.00015616,2]
[334844232,1723607505866,-731.8,0.00015616,2]
[334844233,1723607505876,-500.0,0.00015616,2]
[334844234,1723607505886,-500.0,0.00015616,2]
[334844235,1723607505895,-500.0,0.00015616,2]
[334844236,1723607505905,-654.55,0.00015616,2]
[334844237,1723607505916,-1474.25,0.00015616,2]
[334844238,1723607505926,-297.8920643,0.00015616,2]
[334844239,1723607505944,-473.28023069,0.00015616,2]
[334844240,1723607505956,-164.53770501,0.00015616,2]
[334844241,1723607505966,-500.0,0.00015616,2]
[334844242,1723607505976,-795.43,0.00015616,2]
[334844243,1723607505986,-457.332295,0.00015616,2]
[334844244,1723607506002,-500.0,0.0001452,2]
[334844245,1723607506011,-42.667705,0.00015616,2]
[334844246,1723607506025,-333.0155247,0.00015616,2]
[334844247,1723607506036,-166.9844753,0.00015616,2]
[334844248,1723607506046,-972.13195548,0.00015616,2]
[334844249,1723607506057,-319.12804452,0.00015616,2]
[334844250,1723607506067,-500.0,0.00015616,2]
[334844251,1723607506077,-327.67251751,0.00015616,2]
[334844252,1723607506697,-362.8837599,0.00013698,2]
[334844253,1723607506709,-199.9462401,0.00013698,2]
[334844254,1723607506719,-212.2290618,0.00013698,2]
[334844255,1723607506732,-837.93466786,0.00013698,2]
[334844256,1723607506743,-341.04,0.00013698,2]
[334844257,1723607506754,-208.19627034,0.00013698,2]
[334844258,1723607506764,-500.0,0.00013698,2]
[334844259,1723607506774,-58.94739784,0.00013698,2]
[334844260,1723607506786,-441.05260216,0.00013698,2]
[334844261,1723607506796,-148.32176365,0.00013699,2]
[334844262,1723607506808,-51.67823635,0.00013699,2]
[334844263,1723607506818,-476.55842382,0.00013972,2]
[334844264,1723607506832,-794.19253862,0.00013972,2]
[334844265,1723607506845,-328.64903756,0.00013972,2]
[334844266,1723607506854,-500.0,0.00013972,2]
[334844267,1723607506864,-1599.4,0.00014246,2]
[334844268,1723607506873,-326.26770599,0.00014246,2]
[334844269,1723607506885,-173.73229401,0.00014246,2]
[334844270,1723607506895,-311.56770594,0.0001452,2]
[334844271,1723607506908,-505.5664408,0.0001452,2]
[334844272,1723607506921,-45.72585326,0.0001452,2]
[334844273,1723607506930,-850.06401999,0.0001452,2]
[334844274,1723607506942,-749.33598001,0.0001452,2]
[334844275,1723607506951,-332.9917779,0.0001452,2]
[334844276,1723607506961,-500.0,0.00014794,2]
[334844277,1723607506972,-862.86,0.00014794,2]
[334844278,1723607506982,-500.0,0.00015068,2]
[334844279,1723607506992,-862.86,0.00015068,2]
[334844280,1723607507002,-500.0,0.00015342,2]
[334844281,1723607507011,-137.18965148,0.00015342,2]
[334844282,1723607507023,-725.67034852,0.00015342,2]
[334844283,1723607507033,-373.0801662,0.00015616,2]
[334844284,1723607507044,-920.73731629,0.00015616,2]
[334844285,1723607507053,-500.0,0.00015616,2]
[334844286,1723607507062,-553.51,0.00015616,2]
[334844287,1723607507071,-1600.49,0.00015616,2]
[334844288,1723607507081,-1806.84,0.00015616,2]
[334844289,1723607507091,-712.18,0.00015616,2]
[334844290,1723607507101,-521.1,0.00015616,2]
[334844291,1723607507110,-299.52934158,0.00015616,2]
[334844292,1723607507258,-541.55038011,0.00015616,2]
[334844293,1723607507270,-697.68583,0.00015616,2]
[334844294,1723607507282,-357.22444831,0.00015616,2]
[334844295,1723607507291,-362.80383407,0.00015616,2]
[334844296,1723607507304,-434.855895,0.00015616,2]
[334844297,1723607507315,-925.35027093,0.00015616,2]
[334844298,1723607507325,-1877.59,0.00015616,2]
[334844299,1723607507336,-500.0,0.00015616,2]
[334844300,1723607507345,-152.59382441,0.00015616,2]
[334844301,1723607507357,-347.40617559,0.00015616,2]
[334844302,1723607507366,-631.87,0.00015616,2]
[334844303,1723607507375,-36.82382441,0.00015616,2]
[334844304,1723607507387,-806.17617559,0.00015616,2]
[334844305,1723607507396,-997.63,0.00015616,2]
[334844306,1723607507406,-500.0,0.00015616,2]
[334844307,1723607507415,-237.50767761,0.00015616,2]
[334844308,1723607507427,-203.45730279,0.00015616,2]
[334844309,1723607507437,-500.0,0.00015616,2]
[334844310,1723607507447,-500.0,0.00015616,2]
[334844311,1723607507456,-500.0,0.00015616,2]
[334844312,1723607507465,-636.54269721,0.00015616,2]
[334844313,1723607507530,-437.14730279,0.00015616,2]
[334844314,1723607507539,-903.82,0.00015616,2]
[334844315,1723607507548,-1215.4,0.00015616,2]
[334844316,1723607507558,-674.42,0.00015616,2]
[334844317,1723607507568,-1082.37,0.00015616,2]
[334844318,1723607507577,-1982.45,0.00015616,2]
[334844319,1723607507586,-2111.74,0.00015616,2]
[334844320,1723607507596,-1233.9,0.00015616,2]
[334844321,1723607507608,-3815.52,0.00015616,2]
[334844322,1723607507619,-500.0,0.00015616,2]
[334844323,1723607507628,-848.59,0.00015616,2]
[334844324,1723607507639,-2334.24,0.00015616,2]
[334844325,1723607507649,-718.84,0.00015616,2]
[334844326,1723607507660,-500.0,0.00015616,2]
[334844327,1723607507670,-312.52526829,0.00015616,2]
[334844328,1723607507679,-1454.45,0.00015616,2]
[334844329,1723607507688,-996.86,0.00015616,2]
[334844330,1723607507698,-405.1665567,0.00015616,2]
[334844331,1723607507709,-1413.89,0.00015616,2]
[334844332,1723607507719,-1306.14,0.00015616,2]
[334844333,1723607507729,-500.0,0.00015616,2]
[334844334,1723607507740,-851.44,0.00015616,2]
[334844335,1723607507750,-2059.77,0.00015616,2]
[334844336,1723607507760,-1108.11,0.00015616,2]
[334844337,1723607507770,-701.35,0.00015616,2]
[334844338,1723607507779,-592.2,0.00015616,2]
[334844339,1723607507789,-863.81,0.00015616,2]
[334844340,1723607507798,-842.9,0.00015616,2]
[334844341,1723607507807,-500.0,0.00015616,2]
[334844342,1723607507816,-640.01,0.00015616,2]
[334844343,1723607507825,-1173.01,0.00015616,2]
[334844344,1723607507834,-500.0,0.00015616,2]
[334844345,1723607507843,-500.0,0.00015616,2]
[334844346,1723607507852,-1366.52,0.00015616,2]
[334844347,1723607507862,-1120.85,0.00015616,2]
[334844348,1723607507871,-500.0,0.00015616,2]
[334844349,1723607507881,-485.57381257,0.00015616,2]
[334844350,1723607507891,-666.14,0.00015616,2]
[334844351,1723607507901,-527.01,0.00015616,2]
[334844352,1723607507911,-1024.41,0.00015616,2]
[334844353,1723607507920,-500.0,0.00015616,2]
[334844354,1723607507929,-500.0,0.00015616,2]
[334844355,1723607507938,-2173.7,0.00015616,2]
[334844356,1723607507948,-1345.95,0.00015616,2]
[334844357,1723607507958,-984.97,0.00015616,2]
[334844358,1723607507967,-2468.39,0.00015616,2]
[334844359,1723607507977,-500.0,0.00015616,2]
[334844360,1723607507987,-737.25,0.00015616,2]
[334844361,1723607507996,-990.66,0.00015616,2]
[334844362,1723607508005,-836.37,0.00015616,2]
[334844363,1723607508014,-652.06,0.00015616,2]
[334844364,1723607508023,-1124.45,0.00015616,2]
[334844365,1723607508032,-617.29,0.00015616,2]
[334844366,1723607508042,-657.84,0.00015616,2]
[334844367,1723607508052,-1513.15,0.00015616,2]
[334844368,1723607508061,-1128.09,0.00015616,2]
[334844369,1723607508070,-1593.05,0.00015616,2]
[334844370,1723607508080,-1465.45,0.00015616,2]
[334844371,1723607508089,-512.37,0.00015616,2]
[334844372,1723607508099,-1433.68,0.00015616,2]
[334844373,1723607508108,-500.0,0.00015616,2]
[334844374,1723607508117,-1436.38,0.00015616,2]
[334844375,1723607508127,-566.62,0.00015616,2]
[334844376,1723607508139,-500.0,0.00015616,2]
[334844377,1723607508148,-602.37491268,0.00015616,2]
[334844378,1723607508158,-980.27,0.00015616,2]
[334844379,1723607508167,-1757.62,0.00015616,2]
[334844380,1723607508177,-1090.22,0.00015616,2]
[334844381,1723607508186,-2446.57,0.00015616,2]
[334844382,1723607508195,-2344.16,0.00015616,2]
[334844383,1723607508205,-169.10385258,0.00015616,2]
[334844384,1723607508214,-500.0,0.00015616,2]
[334844385,1723607508224,-500.0,0.00015616,2]
[334844386,1723607508233,-1919.8,0.00015616,2]
[334844387,1723607508242,-850.36,0.00015616,2]
[334844388,1723607508252,-743.85,0.00015616,2]
[334844389,1723607508262,-500.0,0.00015616,2]
[334844390,1723607508271,-713.35,0.00015616,2]
[334844391,1723607508281,-536.68,0.00015616,2]
[334844392,1723607508290,-654.34,0.00015616,2]
[334844393,1723607508299,-500.0,0.00015616,2]
[334844394,1723607508309,-500.0,0.00015616,2]
[334844395,1723607508323,-557.78,0.00015616,2]
[334844396,1723607508332,-738.54,0.00015616,2]
[334844397,1723607508342,-500.0,0.00015616,2]
[334844398,1723607508353,-1222.0,0.00015616,2]
[334844399,1723607508362,-1232.17,0.00015616,2]
[334844400,1723607508372,-759.17,0.00015616,2]
[334844401,1723607508381,-1276.5,0.00015616,2]
[334844402,1723607508390,-1227.19,0.00015616,2]
[334844403,1723607508400,-660.75,0.00015616,2]
[334844404,1723607508411,-1099.44,0.00015616,2]
[334844405,1723607508420,-500.0,0.00015616,2]
[334844406,1723607508429,-2090.28,0.00015616,2]
[334844407,1723607508441,-500.0,0.00015616,2]
[334844408,1723607508450,-508.15,0.00015616,2]
[334844409,1723607508460,-500.0,0.00015616,2]
[334844410,1723607508470,-500.0,0.00015616,2]
[334844411,1723607508479,-793.09,0.00015616,2]
[334844412,1723607508488,-500.0,0.00015616,2]
[334844413,1723607508497,-500.0,0.00015616,2]
[334844414,1723607508506,-808.2,0.00015616,2]
[334844415,1723607508515,-1244.25,0.00015616,2]
[334844416,1723607508524,-1870.71,0.00015616,2]
[334844417,1723607508533,-500.0,0.00015616,2]
[334844418,1723607508543,-1020.02,0.00015616,2]
[334844419,1723607508552,-1386.1,0.00015616,2]
[334844420,1723607508562,-732.86,0.00015616,2]
[334844421,1723607508571,-500.0,0.00015616,2]
[334844422,1723607508581,-220.06788973,0.00015616,2]
[334844423,1723607508590,-1778.14,0.00015616,2]
[334844424,1723607508599,-400.0,0.00015616,2]
[334844425,1723607508608,-500.0,0.00015616,2]
[334844426,1723607508617,-1254.8,0.00015616,2]
[334844427,1723607508627,-2294.9,0.00015616,2]
[334844428,1723607508636,-500.0,0.00015616,2]
[334844429,1723607508644,-1685.71,0.00015616,2]
[334844430,1723607508653,-1045.4,0.00015616,2]
[334844431,1723607508667,-769.79,0.00015616,2]
[334844432,1723607508676,-500.0,0.00015616,2]
[334844433,1723607508685,-829.12,0.00015616,2]
[334844434,1723607508694,-1819.06,0.00015616,2]
[334844435,1723607508704,-584.66,0.00015616,2]
[334844436,1723607508712,-865.12,0.00015616,2]
[334844437,1723607508721,-1828.3,0.00015616,2]
[334844438,1723607508731,-1487.62,0.00015616,2]
[334844439,1723607508741,-1120.95,0.00015616,2]
[334844440,1723607508750,-1122.91,0.00015616,2]
[334844441,1723607508761,-862.4,0.00015616,2]
[334844442,1723607508770,-849.24,0.00015616,2]
[334844443,1723607508779,-1564.47,0.00015616,2]
[334844444,1723607508788,-866.92,0.00015616,2]
[334844445,1723607508797,-500.0,0.00015616,2]
[334844446,1723607508806,-500.0,0.00015616,2]
[334844447,1723607508815,-1212.45,0.00015616,2]
[334844448,1723607508825,-1055.57,0.00015616,2]
[334844449,1723607508834,-2613.0,0.00015616,2]
[334844450,1723607508843,-1994.05,0.00015616,2]
[334844451,1723607508852,-857.51,0.00015616,2]
[334844452,1723607508861,-1338.26,0.00015616,2]
[334844453,1723607508871,-1351.32,0.00015616,2]
[334844454,1723607508880,-500.0,0.00015616,2]
[334844455,1723607508891,-500.0,0.00015616,2]
[334844456,1723607508900,-1405.25743344,0.00015616,2]
[334844457,1723607509434,-624.45256656,0.00015616,2]
[334844458,1723607509444,-1111.34,0.00015616,2]
[334844459,1723607509455,-500.0,0.00015616,2]
[334844460,1723607509466,-500.0,0.00015616,2]
[334844461,1723607509476,-500.0,0.00015616,2]
[334844462,1723607509486,-3777.94,0.00015616,2]
[334844463,1723607509497,-921.58,0.00015616,2]
[334844464,1723607509507,-689.07,0.00015616,2]
[334844465,1723607509517,-833.34,0.00015616,2]
[334844466,1723607509527,-500.0,0.00015616,2]
[334844467,1723607509537,-500.0,0.00015616,2]
[334844468,1723607509547,-568.61,0.00015616,2]
[334844469,1723607509558,-500.0,0.00015616,2]
[334844470,1723607509568,-589.77,0.00015616,2]
[334844471,1723607509578,-500.0,0.00015616,2]
[334844472,1723607509588,-1554.5,0.00015616,2]
[334844473,1723607509598,-500.0,0.00015616,2]
[334844474,1723607509608,-500.0,0.00015616,2]
[334844475,1723607509618,-500.0,0.00015616,2]
[334844476,1723607509628,-783.79,0.00015616,2]
[334844477,1723607509638,-1921.5,0.00015616,2]
[334844478,1723607509648,-2631.07,0.00015616,2]
[334844479,1723607509659,-500.0,0.00015616,2]
[334844480,1723607509670,-505.7,0.00015616,2]
[334844481,1723607509680,-573.43,0.00015616,2]
[334844482,1723607509691,-1200.87,0.00015616,2]
[334844483,1723607509701,-500.0,0.00015616,2]
[334844484,1723607509710,-1361.66,0.00015616,2]
[334844485,1723607509719,-2549.22,0.00015616,2]
[334844486,1723607509729,-365.9929902,0.00015616,2]
[334844487,1723607509739,-500.0,0.00015616,2]
[334844488,1723607509749,-592.75,0.00015616,2]
[334844489,1723607509758,-500.0,0.00015616,2]
[334844490,1723607509768,-1917.84,0.00015616,2]
[334844491,1723607509778,-965.13,0.00015616,2]
[334844492,1723607509787,-1397.22,0.00015616,2]
[334844493,1723607509797,-1460.11,0.00015616,2]
[334844494,1723607509807,-500.0,0.00015616,2]
[334844495,1723607509817,-844.41,0.00015616,2]
[334844496,1723607509827,-500.0,0.00015616,2]
[334844497,1723607509836,-764.1,0.00015616,2]
[334844498,1723607509847,-1274.82,0.00015616,2]
[334844499,1723607509856,-2325.52,0.00015616,2]
[334844500,1723607509867,-1259.41,0.00015616,2]
[334844501,1723607509876,-500.0,0.00015616,2]
[334844502,1723607509886,-500.0,0.00015616,2]
[334844503,1723607509895,-500.0,0.00015616,2]
[334844504,1723607509904,-851.27,0.00015616,2]
[334844505,1723607509917,-929.25,0.00015616,2]
[334844506,1723607509927,-883.88,0.00015616,2]
[334844507,1723607509937,-512.16,0.00015616,2]
[334844508,1723607509947,-2127.39,0.00015616,2]
[334844509,1723607509957,-589.33,0.00015616,2]
[334844510,1723607509967,-1891.32,0.00015616,2]
[334844511,1723607509977,-500.0,0.00015616,2]
[334844512,1723607509987,-2624.85,0.00015616,2]
[334844513,1723607509997,-2240.02,0.00015616,2]
[334844514,1723607510007,-2114.43,0.00015616,2]
[334844515,1723607510017,-500.0,0.00015616,2]
[334844516,1723607510027,-1630.74,0.00015616,2]
[334844517,1723607510037,-2489.36,0.00015616,2]
[334844518,1723607510047,-1834.05,0.00015616,2]
[334844519,1723607510057,-514.91,0.00015616,2]
[334844520,1723607510067,-530.28,0.00015616,2]
[334844521,1723607510077,-657.56,0.00015616,2]
[334844522,1723607510087,-580.46,0.00015616,2]
[334844523,1723607510097,-500.0,0.00015616,2]
[334844524,1723607510106,-2155.23,0.00015616,2]
[334844525,1723607510115,-729.49,0.00015616,2]
[334844526,1723607510127,-1292.57,0.00015616,2]
[334844527,1723607510139,-803.11,0.00015616,2]
[334844528,1723607510148,-500.0,0.00015616,2]
[334844529,1723607510159,-784.66,0.00015616,2]
[334844530,1723607510169,-985.66,0.00015616,2]
[334844531,1723607510179,-1484.83,0.00015616,2]
[334844532,1723607510189,-558.89,0.00015616,2]
[334844533,1723607510199,-233.74165585,0.00015616,2]
[334844534,1723607510210,-1171.57,0.00015616,2]
[334844535,1723607510220,-961.68,0.00015616,2]
[334844536,1723607510230,-1433.08,0.00015616,2]
[334844537,1723607510240,-644.74,0.00015616,2]
[334844538,1723607510250,-1605.56,0.00015616,2]
[334844539,1723607510260,-544.66,0.00015616,2]
[334844540,1723607510269,-344.59875071,0.00015616,2]
[334844541,1723607510279,-671.88,0.00015616,2]
[334844542,1723607510289,-966.64,0.00015616,2]
[334844543,1723607510300,-1438.91,0.00015616,2]
[334844544,1723607510311,-3279.05,0.00015616,2]
[334844545,1723607510320,-1269.61,0.00015616,2]
[334844546,1723607510331,-2431.77,0.00015616,2]
[334844547,1723607510341,-1897.29,0.00015616,2]
[334844548,1723607510351,-500.0,0.00015616,2]
[334844549,1723607510361,-1900.43,0.00015616,2]
[334844550,1723607510372,-2321.53,0.00015616,2]
[334844551,1723607510381,-638.95435639,0.00015616,2]
[334844552,1723607510391,-500.0,0.00015616,2]
[334844553,1723607510401,-1225.74,0.00015616,2]
[334844554,1723607510414,-751.13,0.00015616,2]
[334844555,1723607510424,-500.0,0.00015616,2]
[334844556,1723607510434,-2710.3,0.00015616,2]
[334844557,1723607510443,-500.0,0.00015616,2]
[334844558,1723607510453,-590.22,0.00015616,2]
[334844559,1723607510462,-1784.2,0.00015616,2]
[334844560,1723607510472,-1096.21,0.00015616,2]
[334844561,1723607510482,-248.4309919,0.00015616,2]
[334844562,1723607510491,-500.0,0.00015616,2]
[334844563,1723607510502,-500.0,0.00015616,2]
[334844564,1723607510512,-500.0,0.00015616,2]
[334844565,1723607510522,-500.0,0.00015616,2]
[334844566,1723607510532,-843.23,0.00015616,2]
[334844567,1723607510542,-422.67340445,0.00015616,2]
[334844568,1723607510552,-500.0,0.00015616,2]
[334844569,1723607510561,-500.0,0.00015616,2]
[334844570,1723607510571,-630.2,0.00015616,2]
[334844571,1723607510582,-500.0,0.00015616,2]
[334844572,1723607510591,-500.0,0.00015616,2]
[334844573,1723607510600,-1522.48,0.00015616,2]
[334844574,1723607510610,-913.08,0.00015616,2]
[334844575,1723607510619,-500.0,0.00015616,2]
[334844576,1723607510628,-500.0,0.00015616,2]
[334844577,1723607510638,-1893.09,0.00015616,2]
[334844578,1723607510649,-648.5,0.00015616,2]
[334844579,1723607510660,-915.27,0.00015616,2]
[334844580,1723607510669,-500.0,0.00015616,2]
[334844581,1723607510679,-2186.94,0.00015616,2]
[334844582,1723607510688,-491.65,0.00015616,2]
[334844583,1723607510698,-500.0,0.00015616,2]
[334844584,1723607510708,-500.0,0.00015616,2]
[334844585,1723607510718,-1677.03,0.00015616,2]
[334844586,1723607510727,-1309.3,0.00015616,2]
[334844587,1723607510737,-856.83,0.00015616,2]
[334844588,1723607510747,-500.0,0.00015616,2]
[334844589,1723607510756,-1414.57,0.00015616,2]
[334844590,1723607510765,-794.25,0.00015616,2]
[334844591,1723607510774,-1252.5,0.00015616,2]
[334844592,1723607510784,-3148.01,0.00015616,2]
[334844593,1723607510793,-696.1,0.00015616,2]
[334844594,1723607510803,-500.0,0.00015616,2]
[334844595,1723607510813,-3372.08,0.00015616,2]
[334844596,1723607510823,-500.0,0.00015616,2]
[334844597,1723607510833,-1053.98,0.00015616,2]
[334844598,1723607510843,-1421.12,0.00015616,2]
[334844599,1723607510853,-500.0,0.00015616,2]
[334844600,1723607510862,-2482.50458262,0.00015616,2]
[334844601,1723607510880,-499.44131326,0.00015616,2]